[Event "1st Archibald 2019"]
[Site "Sochi"]
[Date "2019.05.12"]
[Round "1.6"]
[White "Alexeev, Alexey"]
[Black "Khalifman, Alexander"]
[Result "0-1"]
[ECO "B40"]
[WhiteElo "2292"]
[BlackElo "2616"]
[Annotator "RC"]
[PlyCount "118"]
[EventDate "2019.05.12"]
[EventType "swiss"]
[EventCountry "RUS"]
[SourceTitle "playchess.com"]
[Source "ChessBase"]
[SourceQuality "1"]
[TimeControl "5400+30"]

1. e4 {[%emt 0:00:00]} c5 {[%emt 0:00:00]} 2. Nf3 {[%emt 0:00:00]} e6 {[%emt 0:00:00]} 3. g3 {[%emt 0:00:00]} Nc6 {[%emt 0:00:05]} 4. Bg2 {[%emt 0:00:02]} Nf6 {[%emt 0:00:08]} 5. Qe2 {[%emt 0:00:13]} e5 {[%emt 0:00:00]} 6. O-O {[%emt 0:01:23]} Be7 {[%emt 0:00:54]} 7. c3 {[%emt 0:00:32]} O-O {[%emt 0:00:09]} 8. Na3 {[%emt 0:00:20]} Re8 {[%emt 0:01:00]} 9. d3 {[%emt 0:04:43]} h6 {[%emt 0:04:06]} 10. Nc4 {[%emt 0:01:21]} Bf8 {[%emt 0:01:26]} 11. Ne3 {[%emt 0:10:00]} d5 {[%emt 0:01:24]} 12. Nh4 {[%emt 0:02:06]} Be6 {[%emt 0:03:55]} 13. Qf3 {[%emt 0:02:04]} Ne7 {[%emt 0:13:20]} 14. Nhf5 {[%emt 0:03:07]} d4 {[%emt 0:17:55]} 15. Nxe7+ {[%emt 0:07:26]} Bxe7 {[%emt 0:04:15]} 16. Nd5 {[%emt 0:02:28]} Qd7 {[%emt 0:03:50]} 17. Nxe7+ {[%emt 0:09:51]} Rxe7 {[%emt 0:01:17]} 18. Qe2 {[%emt 0:03:26]} dxc3 {[%emt 0:03:06]} 19. bxc3 {[%emt 0:01:07]} c4 {[%emt 0:01:25]} 20. dxc4 {[%emt 0:06:20]} Qa4 {[%emt 0:01:43]} 21. Re1 {[%emt 0:01:21]} Rc7 {[%emt 0:03:43]} 22. h3 {[%emt 0:06:33]} Rxc4 {[%emt 0:04:07]} 23. Qf3 {[%emt 0:03:48]} Nd7 {[%emt 0:02:49]} 24. Bf1 {[%emt 0:03:39]} Rc7 {[%emt 0:00:48]} 25. Qe3 {[%emt 0:09:31]} Bc4 {[%emt 0:00:32]} 26. Bg2 {[%emt 0:00:29]} Nc5 {[%emt 0:01:04]} 27. Bd2 {[%emt 0:02:30]} Rd8 {[%emt 0:02:44]} 28. Reb1 {[%emt 0:04:15]} b5 {[%emt 0:01:07]} 29. Be1 {[%emt 0:02:35]} Qc2 {[%emt 0:04:14]} 30. Rc1 {[%emt 0:02:23]} Qd3 {[%emt 0:02:19]} 31. Qxd3 {[%emt 0:03:35]} Nxd3 {[%emt 0:00:00]} 32. Rd1 {[%emt 0:00:00]} Rdd7 {[%emt 0:01:00]} 33. Bf1 {[%emt 0:06:11]} Nxe1 {[%emt 0:00:36]} 34. Rxd7 {[%emt 0:00:41]} Nf3+ {[%emt 0:01:11]} 35. Kg2 {[%emt 0:00:34]} Bxf1+ {[%emt 0:01:23]} 36. Rxf1 {[%emt 0:00:23]} Rxd7 {[%emt 0:00:10]} 37. Kxf3 {[%emt 0:00:04]} Rd3+ {[%emt 0:00:00]} 38. Kg2 {[%emt 0:00:28]} Rxc3 {[%emt 0:00:25]} 39. Rb1 {[%emt 0:00:22]} Rc5 {[%emt 0:02:33]} 40. Rd1 {[%emt 0:01:06]} a5 {[%emt 0:04:00]} 41. Rd8+ {[%emt 0:00:25]} Kh7 {[%emt 0:00:06]} 42. h4 {[%emt 0:01:40]} Kg6 {[%emt 0:01:27]} 43. Rd6+ {[%emt 0:00:00]} f6 {[%emt 0:00:08]} 44. Rd7 {[%emt 0:00:00]} h5 {[%emt 0:03:15]} 45. Ra7 {[%emt 0:00:32]} a4 {[%emt 0:02:50]} 46. a3 {[%emt 0:00:42]} Rc3 {[%emt 0:00:33]} 47. Rb7 {[%emt 0:00:49]} Rb3 {[%emt 0:00:12]} 48. f3 {[%emt 0:00:19]} Rb2+ {[%emt 0:00:21]} 49. Kh3 {[%emt 0:00:10]} Rf2 {[%emt 0:00:00]} 50. Rxb5 {[%emt 0:00:33]} Rxf3 {[%emt 0:00:19]} 51. Ra5 {[%emt 0:00:46]} Rxa3 {[%emt 0:00:00]} 52. Ra7 {[%emt 0:00:17]} Ra1 {[%emt 0:00:17]} 53. Kg2 {[%emt 0:00:12]} a3 {[%emt 0:00:07]} 54. Kh2 {[%emt 0:00:43]} a2 {[%emt 0:00:40]} 55. Kg2 {[%emt 0:00:05]} f5 {[%emt 0:00:28]} 56. Ra6+ {[%emt 0:00:24]} Kh7 {[%emt 0:00:30]} 57. exf5 {[%emt 0:00:42]} e4 {[%emt 0:00:05]} 58. Ra3 {[%emt 0:00:33]} e3 {[%emt 0:00:10]} 59. Rxe3 {[%emt 0:00:28]} Rb1 {[%emt 0:00:08]} 0-1

[Event "1st Archibald 2019"]
[Site "Sochi"]
[Date "2019.05.12"]
[Round "1.11"]
[White "Stupak, Kirill"]
[Black "Azimov, Ilyas"]
[Result "1-0"]
[ECO "D11"]
[WhiteElo "2551"]
[BlackElo "2223"]
[Annotator "ChessBase"]
[PlyCount "133"]
[EventDate "2019.05.12"]
[EventType "swiss"]
[EventCountry "RUS"]
[SourceTitle "playchess.com"]
[Source "ChessBase"]
[SourceQuality "1"]
[TimeControl "5400+30"]

1. d4 {[%emt 0:00:00]} Nf6 {[%emt 0:00:00]} 2. g3 {[%emt 0:00:00]} d5 {[%emt 0:00:00]} 3. Bg2 {[%emt 0:00:00]} c6 {[%emt 0:00:18]} 4. Nf3 {[%emt 0:00:00]} Bf5 {[%emt 0:00:41]} 5. O-O {[%emt 0:00:01]} e6 {[%emt 0:00:02]} 6. c4 {[%emt 0:00:00]} Nbd7 {[%emt 0:01:55]} 7. Nc3 {[%emt 0:00:00]} h6 {[%emt 0:01:18]} 8. Qb3 {[%emt 0:00:27]} Qb6 {[%emt 0:00:15]} 9. c5 {[%emt 0:00:02]} Qxb3 {[%emt 0:00:31]} 10. axb3 {[%emt 0:00:00]} a6 {[%emt 0:00:37]} 11. b4 {[%emt 0:00:00]} Rc8 {[%emt 0:00:00]} 12. Nd2 {[%emt 0:00:16]} Be7 {[%emt 0:03:01]} 13. Nb3 {[%emt 0:00:41]} Bd8 {[%emt 0:01:17]} 14. Bf4 {[%emt 0:00:04]} Bc7 {[%emt 0:01:29]} 15. Bxc7 {[%emt 0:01:03]} Rxc7 {[%emt 0:00:06]} 16. b5 {[%emt 0:00:04]} Nb8 {[%emt 0:10:35]} 17. b6 {[%emt 0:07:07]} Re7 {[%emt 0:01:55]} 18. f3 {[%emt 0:01:01]} e5 {[%emt 0:12:06]} 19. e4 {[%emt 0:06:59]} dxe4 {[%emt 0:02:22]} 20. fxe4 {[%emt 0:00:31]} exd4 {[%emt 0:01:42]} 21. Nd5 {[%emt 0:19:09]} cxd5 {[%emt 0:09:45]} 22. exf5 {[%emt 0:00:54]} Nc6 {[%emt 0:02:22]} 23. Rfd1 {[%emt 0:02:35]} Kd7 {[%emt 0:03:36]} 24. Nxd4 {[%emt 0:00:36]} Nxd4 {[%emt 0:00:54]} 25. Rxd4 {[%emt 0:00:01]} Kc6 {[%emt 0:01:00]} 26. b4 {[%emt 0:00:06]} Rhe8 {[%emt 0:02:03]} 27. g4 {[%emt 0:04:52]} Re1+ {[%emt 0:11:38]} 28. Rxe1 {[%emt 0:00:35]} Rxe1+ {[%emt 0:00:03]} 29. Kf2 {[%emt 0:00:01]} Re5 {[%emt 0:03:58]} 30. Bf3 {[%emt 0:01:50]} Nd7 {[%emt 0:09:50]} 31. Rd1 {[%emt 0:16:52]} Nf6 {[%emt 0:03:53]} 32. Rd4 {[%emt 0:02:02]} Nd7 {[%emt 0:00:00]} 33. Kg3 {[%emt 0:00:46]} a5 {[%emt 0:05:30]} 34. bxa5 {[%emt 0:01:06]} Nxc5 {[%emt 0:00:50]} 35. Rd1 {[%emt 0:05:12]} f6 {[%emt 0:03:48]} 36. h4 {[%emt 0:05:25]} Kb5 {[%emt 0:01:36]} 37. Ra1 {[%emt 0:00:00]} Re3 {[%emt 0:04:13]} 38. Kf2 {[%emt 0:01:18]} Re5 {[%emt 0:00:24]} 39. Kg2 {[%emt 0:02:55]} Kc4 {[%emt 0:01:06]} 40. Rb1 {[%emt 0:02:29]} Re8 {[%emt 0:01:47]} 41. Rc1+ {[%emt 0:09:06]} Kb4 {[%emt 0:00:02]} 42. Bxd5 {[%emt 0:01:11]} Nd3 {[%emt 0:00:03]} 43. Rd1 {[%emt 0:03:25]} Nc5 {[%emt 0:00:14]} 44. Ra1 {[%emt 0:06:52]} Ra8 {[%emt 0:00:11]} 45. Re1 {[%emt 0:01:09]} Rd8 {[%emt 0:00:56]} 46. Bxb7 {[%emt 0:03:16]} Nxb7 {[%emt 0:00:00]} 47. a6 {[%emt 0:00:01]} Nc5 {[%emt 0:00:49]} 48. a7 {[%emt 0:00:13]} Kb5 {[%emt 0:00:27]} 49. Re7 {[%emt 0:00:13]} Kxb6 {[%emt 0:00:24]} 50. Rxg7 {[%emt 0:00:02]} Nb7 {[%emt 0:01:53]} 51. Rf7 {[%emt 0:00:53]} Kxa7 {[%emt 0:00:07]} 52. Rxf6 {[%emt 0:00:00]} Rh8 {[%emt 0:01:14]} 53. Kf3 {[%emt 0:00:40]} Nd8 {[%emt 0:00:17]} 54. g5 {[%emt 0:01:02]} hxg5 {[%emt 0:00:06]} 55. hxg5 {[%emt 0:00:01]} Kb7 {[%emt 0:00:15]} 56. Rd6 {[%emt 0:00:35]} Kc7 {[%emt 0:00:16]} 57. Rd1 {[%emt 0:00:08]} Nf7 {[%emt 0:00:44]} 58. g6 {[%emt 0:00:55]} Ne5+ {[%emt 0:01:56]} 59. Kf4 {[%emt 0:00:00]} Re8 {[%emt 0:00:20]} 60. g7 {[%emt 0:01:30]} Nf7 {[%emt 0:00:24]} 61. f6 {[%emt 0:00:06]} Ra8 {[%emt 0:00:45]} 62. Kf5 {[%emt 0:00:12]} Ra2 {[%emt 0:00:16]} 63. Re1 {[%emt 0:02:24]} Kd6 {[%emt 0:00:41]} 64. Kg6 {[%emt 0:00:29]} Ne5+ {[%emt 0:00:21]} 65. Rxe5 {[%emt 0:00:11]} Kxe5 {[%emt 0:00:05]} 66. f7 {[%emt 0:00:02]} Rg2+ {[%emt 0:00:09]} 67. Kh7 {[%emt 0:00:02]} 1-0

[Event "1st Archibald 2019"]
[Site "Sochi"]
[Date "2019.05.12"]
[Round "1.12"]
[White "Dashko, Andrey"]
[Black "Tsydypov, Zhamsaran"]
[Result "1/2-1/2"]
[ECO "B90"]
[WhiteElo "2211"]
[BlackElo "2546"]
[Annotator "ChessBase"]
[PlyCount "120"]
[EventDate "2019.05.12"]
[EventType "swiss"]
[EventCountry "RUS"]
[SourceTitle "playchess.com"]
[Source "ChessBase"]
[SourceQuality "1"]
[TimeControl "5400+30"]

1. e4 {[%emt 0:00:00]} c5 {[%emt 0:01:38]} 2. Nf3 {[%emt 0:00:27]} d6 {[%emt 0:00:07]} 3. d4 {[%emt 0:04:15]} cxd4 {[%emt 0:00:08]} 4. Nxd4 {[%emt 0:00:30]} Nf6 {[%emt 0:00:46]} 5. Nc3 {[%emt 0:00:36]} a6 {[%emt 0:00:07]} 6. f3 {[%emt 0:01:23]} e5 {[%emt 0:00:13]} 7. Nb3 {[%emt 0:00:14]} Be6 {[%emt 0:00:07]} 8. Be3 {[%emt 0:00:05]} Be7 {[%emt 0:00:05]} 9. Qd2 {[%emt 0:00:08]} O-O {[%emt 0:00:06]} 10. O-O-O {[%emt 0:00:17]} a5 {[%emt 0:00:07]} 11. Kb1 {[%emt 0:00:24]} a4 {[%emt 0:00:00]} 12. Nc1 {[%emt 0:00:34]} a3 {[%emt 0:00:00]} 13. b3 {[%emt 0:00:09]} Ra5 {[%emt 0:06:59]} 14. Na4 {[%emt 0:05:55]} Rxa4 {[%emt 0:01:39]} 15. bxa4 {[%emt 0:01:33]} d5 {[%emt 0:00:09]} 16. exd5 {[%emt 0:00:44]} Nxd5 {[%emt 0:01:04]} 17. Bc4 {[%emt 0:01:07]} Bb4 {[%emt 0:00:00]} 18. Qd3 {[%emt 0:01:50]} Nc3+ {[%emt 0:00:00]} 19. Qxc3 {[%emt 0:00:45]} Bxc3 {[%emt 0:00:21]} 20. Rxd8 {[%emt 0:00:00]} Rxd8 {[%emt 0:00:00]} 21. Bxe6 {[%emt 0:00:44]} fxe6 {[%emt 0:00:03]} 22. Nb3 {[%emt 0:00:10]} Nc6 {[%emt 0:01:16]} 23. Bc1 {[%emt 0:05:28]} Ra8 {[%emt 0:00:27]} 24. Bxa3 {[%emt 0:01:26]} Rxa4 {[%emt 0:00:00]} 25. Bb2 {[%emt 0:00:02]} Bd4 {[%emt 0:05:50]} 26. Re1 {[%emt 0:05:54]} Kf7 {[%emt 0:02:15]} 27. Bxd4 {[%emt 0:01:15]} exd4 {[%emt 0:00:08]} 28. Rxe6 {[%emt 0:00:19]} Kxe6 {[%emt 0:06:45]} 29. Nc5+ {[%emt 0:01:04]} Ke5 {[%emt 0:01:26]} 30. Nxa4 {[%emt 0:00:12]} Kf4 {[%emt 0:00:15]} 31. Nc5 {[%emt 0:01:00]} Ke3 {[%emt 0:00:04]} 32. Ne6 {[%emt 0:19:33]} Kf2 {[%emt 0:03:30]} 33. g3 {[%emt 0:00:47]} Kxf3 {[%emt 0:03:24]} 34. Nxg7 {[%emt 0:00:30]} Kg2 {[%emt 0:02:56]} 35. Ne8 {[%emt 0:04:13]} Ne5 {[%emt 0:00:21]} 36. Nf6 {[%emt 0:01:31]} h6 {[%emt 0:00:00]} 37. Ng8 {[%emt 0:03:11]} Ng4 {[%emt 0:01:20]} 38. Ne7 {[%emt 0:00:00]} Kxh2 {[%emt 0:06:11]} 39. Nf5 {[%emt 0:00:28]} h5 {[%emt 0:00:48]} 40. Kc1 {[%emt 0:02:32]} Nf6 {[%emt 0:00:54]} 41. Kd1 {[%emt 0:01:22]} Ne4 {[%emt 0:01:09]} 42. a4 {[%emt 0:02:33]} Nxg3 {[%emt 0:06:37]} 43. Nxd4 {[%emt 0:02:46]} Kg2 {[%emt 0:00:12]} 44. Ke1 {[%emt 0:01:03]} h4 {[%emt 0:00:58]} 45. Ne6 {[%emt 0:00:18]} Nh5 {[%emt 0:07:45]} 46. Ng5 {[%emt 0:03:39]} Nf4 {[%emt 0:04:52]} 47. a5 {[%emt 0:00:44]} Ng6 {[%emt 0:09:53]} 48. Ke2 {[%emt 0:02:42]} Ne5 {[%emt 0:00:00]} 49. Ke3 {[%emt 0:00:51]} Nf7 {[%emt 0:01:54]} 50. Ne6 {[%emt 0:00:59]} Kg3 {[%emt 0:01:47]} 51. Nf4 {[%emt 0:00:15]} Ne5 {[%emt 0:01:38]} 52. Ne2+ {[%emt 0:00:21]} Kg4 {[%emt 0:00:58]} 53. Kf2 {[%emt 0:00:30]} Nc6 {[%emt 0:00:25]} 54. Nc3 {[%emt 0:01:08]} Nxa5 {[%emt 0:00:48]} 55. Ne4 {[%emt 0:01:38]} Nc4 {[%emt 0:00:58]} 56. Nc5 {[%emt 0:00:33]} b5 {[%emt 0:00:44]} 57. Ne6 {[%emt 0:02:48]} h3 {[%emt 0:04:22]} 58. Nd4 {[%emt 0:00:21]} Nd6 {[%emt 0:01:22]} 59. Kg1 {[%emt 0:00:02]} Ne4 {[%emt 0:00:51]} 60. Kh2 {[%emt 0:01:12]} Nd6 {[%emt 0:03:50]} 1/2-1/2

[Event "1st Archibald 2019"]
[Site "Sochi"]
[Date "2019.05.12"]
[Round "1.13"]
[White "Bocharov, Dmitry"]
[Black "Bimiev, Ahmad"]
[Result "0-1"]
[ECO "C90"]
[WhiteElo "2530"]
[BlackElo "2196"]
[Annotator "ChessBase"]
[PlyCount "64"]
[EventDate "2019.05.12"]
[EventType "swiss"]
[EventCountry "RUS"]
[SourceTitle "playchess.com"]
[Source "ChessBase"]
[SourceQuality "1"]
[TimeControl "5400+30"]

1. e4 {[%emt 0:00:00]} e5 {[%emt 0:00:17]} 2. Nf3 {[%emt 0:00:00]} Nc6 {[%emt 0:00:08]} 3. Bb5 {[%emt 0:00:12]} a6 {[%emt 0:00:13]} 4. Ba4 {[%emt 0:00:12]} Nf6 {[%emt 0:00:21]} 5. O-O {[%emt 0:00:23]} Be7 {[%emt 0:00:58]} 6. Re1 {[%emt 0:02:01]} b5 {[%emt 0:00:00]} 7. Bb3 {[%emt 0:00:08]} d6 {[%emt 0:00:00]} 8. c3 {[%emt 0:00:27]} Nb8 {[%emt 0:01:35]} 9. d4 {[%emt 0:03:42]} Nbd7 {[%emt 0:00:20]} 10. Bxf7+ {[%emt 0:12:59]} Kxf7 {[%emt 0:00:00]} 11. Ng5+ {[%emt 0:00:37]} Kg6 {[%emt 0:00:07]} 12. f4 {[%emt 0:07:41]} exf4 {[%emt 0:02:25]} 13. Ne6 {[%emt 0:02:16]} Qg8 {[%emt 0:00:00]} 14. Nxf4+ {[%emt 0:00:14]} Kf7 {[%emt 0:01:13]} 15. e5 {[%emt 0:01:29]} dxe5 {[%emt 0:06:47]} 16. dxe5 {[%emt 0:01:01]} Nxe5 {[%emt 0:00:00]} 17. Rxe5 {[%emt 0:01:27]} Bd6 {[%emt 0:00:58]} 18. Re1 {[%emt 0:06:33]} Bg4 {[%emt 0:10:10]} 19. Qc2 {[%emt 0:06:33]} Re8 {[%emt 0:03:05]} 20. Rf1 {[%emt 0:00:09]} Bxf4 {[%emt 0:27:05]} 21. Bxf4 {[%emt 0:05:58]} Re2 {[%emt 0:00:00]} 22. Qd3 {[%emt 0:08:55]} Qa8 {[%emt 0:00:47]} 23. Qg3 {[%emt 0:00:07]} h5 {[%emt 0:10:59]} 24. Bg5 {[%emt 0:19:52]} Qa7+ {[%emt 0:00:23]} 25. Kh1 {[%emt 0:00:18]} Qc5 {[%emt 0:00:39]} 26. Bxf6 {[%emt 0:03:14]} gxf6 {[%emt 0:00:00]} 27. b4 {[%emt 0:04:33]} Qc6 {[%emt 0:00:23]} 28. Na3 {[%emt 0:02:16]} Rg8 {[%emt 0:04:04]} 29. Rae1 {[%emt 0:06:22]} h4 {[%emt 0:04:35]} 30. Qxg4 {[%emt 0:01:34]} Rxg4 {[%emt 0:00:32]} 31. Rxe2 {[%emt 0:00:07]} h3 {[%emt 0:00:00]} 32. Rff2 {[%emt 0:00:08]} Rxb4 {[%emt 0:04:26]} 0-1

[Event "1st Archibald 2019"]
[Site "Sochi"]
[Date "2019.05.12"]
[Round "1.14"]
[White "Mikhailovsky, Vladimir"]
[Black "Korneev, Oleg"]
[Result "1/2-1/2"]
[ECO "D48"]
[WhiteElo "2180"]
[BlackElo "2530"]
[Annotator "ChessBase"]
[PlyCount "120"]
[EventDate "2019.05.12"]
[EventType "swiss"]
[EventCountry "RUS"]
[SourceTitle "playchess.com"]
[Source "ChessBase"]
[SourceQuality "1"]
[TimeControl "5400+30"]

1. d4 {[%emt 0:00:00]} Nf6 {[%emt 0:00:00]} 2. c4 {[%emt 0:00:00]} e6 {[%emt 0:00:00]} 3. Nf3 {[%emt 0:00:00]} d5 {[%emt 0:00:00]} 4. Nc3 {[%emt 0:00:01]} c6 {[%emt 0:00:00]} 5. e3 {[%emt 0:01:09]} Nbd7 {[%emt 0:01:28]} 6. Bd3 {[%emt 0:01:58]} dxc4 {[%emt 0:00:00]} 7. Bxc4 {[%emt 0:00:00]} b5 {[%emt 0:00:05]} 8. Bd3 {[%emt 0:07:27]} a6 {[%emt 0:00:00]} 9. O-O {[%emt 0:03:11]} c5 {[%emt 0:00:07]} 10. Qe2 {[%emt 0:02:53]} Bb7 {[%emt 0:00:13]} 11. Rd1 {[%emt 0:00:41]} Rc8 {[%emt 0:07:59]} 12. e4 {[%emt 0:06:25]} cxd4 {[%emt 0:00:14]} 13. Nxd4 {[%emt 0:01:19]} Bc5 {[%emt 0:04:02]} 14. Be3 {[%emt 0:13:58]} O-O {[%emt 0:07:00]} 15. f3 {[%emt 0:09:18]} Qc7 {[%emt 0:05:30]} 16. Rac1 {[%emt 0:02:02]} Qb8 {[%emt 0:02:20]} 17. Nb3 {[%emt 0:09:28]} Bd6 {[%emt 0:02:32]} 18. g3 {[%emt 0:00:32]} Ne5 {[%emt 0:06:45]} 19. Qf2 {[%emt 0:04:07]} Nxd3 {[%emt 0:13:22]} 20. Rxd3 {[%emt 0:00:03]} Be5 {[%emt 0:00:13]} 21. Rcd1 {[%emt 0:03:53]} Rcd8 {[%emt 0:05:28]} 22. Bd4 {[%emt 0:03:35]} Bxd4 {[%emt 0:03:33]} 23. Rxd4 {[%emt 0:00:33]} Rc8 {[%emt 0:01:40]} 24. Rd6 {[%emt 0:01:15]} b4 {[%emt 0:06:30]} 25. Na4 {[%emt 0:03:53]} Nd5 {[%emt 0:04:58]} 26. Rd7 {[%emt 0:01:45]} Bc6 {[%emt 0:03:54]} 27. Nac5 {[%emt 0:00:36]} Qb5 {[%emt 0:04:34]} 28. Rd6 {[%emt 0:04:35]} Nf6 {[%emt 0:04:02]} 29. a4 {[%emt 0:06:20]} bxa3 {[%emt 0:00:00]} 30. bxa3 {[%emt 0:00:01]} a5 {[%emt 0:02:36]} 31. a4 {[%emt 0:00:42]} Qb6 {[%emt 0:02:58]} 32. Kg2 {[%emt 0:04:38]} h5 {[%emt 0:01:45]} 33. Qd2 {[%emt 0:01:10]} Ne8 {[%emt 0:07:53]} 34. Rd8 {[%emt 0:00:37]} Nf6 {[%emt 0:04:25]} 35. Rxf8+ {[%emt 0:01:30]} Rxf8 {[%emt 0:00:10]} 36. Qxa5 {[%emt 0:00:22]} Qxa5 {[%emt 0:00:34]} 37. Nxa5 {[%emt 0:00:03]} Bxa4 {[%emt 0:00:09]} 38. Nxa4 {[%emt 0:03:03]} Ra8 {[%emt 0:00:00]} 39. Nc6 {[%emt 0:00:41]} Rxa4 {[%emt 0:00:00]} 40. Rd8+ {[%emt 0:00:04]} Kh7 {[%emt 0:00:07]} 41. Ne5 {[%emt 0:00:04]} Ra2+ {[%emt 0:00:43]} 42. Kh3 {[%emt 0:00:02]} g5 {[%emt 0:00:56]} 43. Rf8 {[%emt 0:02:21]} g4+ {[%emt 0:00:09]} 44. Kh4 {[%emt 0:00:19]} Kh6 {[%emt 0:01:12]} 45. h3 {[%emt 0:00:25]} gxh3 {[%emt 0:01:36]} 46. Kxh3 {[%emt 0:00:33]} Nh7 {[%emt 0:00:08]} 47. Nxf7+ {[%emt 0:01:06]} Kg7 {[%emt 0:00:02]} 48. Rh8 {[%emt 0:00:07]} Nf6 {[%emt 0:00:39]} 49. e5 {[%emt 0:00:30]} Nd5 {[%emt 0:00:08]} 50. Rxh5 {[%emt 0:00:19]} Kxf7 {[%emt 0:00:00]} 51. Rh6 {[%emt 0:00:50]} Ra3 {[%emt 0:01:30]} 52. Kg4 {[%emt 0:00:32]} Ne3+ {[%emt 0:00:00]} 53. Kg5 {[%emt 0:00:05]} Nf5 {[%emt 0:00:49]} 54. Rf6+ {[%emt 0:00:24]} Ke7 {[%emt 0:00:32]} 55. g4 {[%emt 0:00:12]} Nd4 {[%emt 0:01:17]} 56. f4 {[%emt 0:00:12]} Rg3 {[%emt 0:00:35]} 57. Rh6 {[%emt 0:00:28]} Nf3+ {[%emt 0:00:22]} 58. Kh5 {[%emt 0:00:07]} Rh3+ {[%emt 0:00:13]} 59. Kg6 {[%emt 0:00:02]} Rxh6+ {[%emt 0:00:51]} 60. Kxh6 {[%emt 0:00:06]} Kf7 {[%emt 0:00:02]} 1/2-1/2

[Event "1st Archibald 2019"]
[Site "Sochi"]
[Date "2019.05.12"]
[Round "1.15"]
[White "Kotsur, Pavel"]
[Black "Novikov, Evgenij"]
[Result "1-0"]
[ECO "B10"]
[WhiteElo "2527"]
[BlackElo "2148"]
[Annotator "ChessBase"]
[PlyCount "115"]
[EventDate "2019.05.12"]
[EventType "swiss"]
[EventCountry "RUS"]
[SourceTitle "playchess.com"]
[Source "ChessBase"]
[SourceQuality "1"]
[TimeControl "5400+30"]

1. e4 {[%emt 0:00:00]} c6 {[%emt 0:00:00]} 2. c4 {[%emt 0:01:01]} d5 {[%emt 0:00:12]} 3. exd5 {[%emt 0:00:00]} cxd5 {[%emt 0:00:05]} 4. cxd5 {[%emt 0:00:11]} Nf6 {[%emt 0:03:02]} 5. Qa4+ {[%emt 0:02:26]} Nbd7 {[%emt 0:03:46]} 6. Nc3 {[%emt 0:01:05]} g6 {[%emt 0:00:31]} 7. Nf3 {[%emt 0:00:34]} Bg7 {[%emt 0:00:27]} 8. Bc4 {[%emt 0:00:12]} O-O {[%emt 0:00:46]} 9. d3 {[%emt 0:00:09]} a6 {[%emt 0:13:24]} 10. Qa3 {[%emt 0:00:23]} b6 {[%emt 0:10:59]} 11. O-O {[%emt 0:11:05]} Bb7 {[%emt 0:00:36]} 12. Qb4 {[%emt 0:09:37]} Nc5 {[%emt 0:07:08]} 13. Bg5 {[%emt 0:07:43]} Rc8 {[%emt 0:16:04]} 14. a4 {[%emt 0:14:03]} h6 {[%emt 0:13:54]} 15. Be3 {[%emt 0:12:03]} a5 {[%emt 0:01:55]} 16. Qa3 {[%emt 0:01:34]} Nxd5 {[%emt 0:00:07]} 17. Nxd5 {[%emt 0:00:02]} Bxd5 {[%emt 0:00:05]} 18. Bxd5 {[%emt 0:00:34]} Qxd5 {[%emt 0:00:04]} 19. d4 {[%emt 0:00:02]} Ne6 {[%emt 0:03:43]} 20. Qxe7 {[%emt 0:00:10]} Nxd4 {[%emt 0:01:17]} 21. Nxd4 {[%emt 0:03:49]} Bxd4 {[%emt 0:00:11]} 22. Rad1 {[%emt 0:00:44]} Qc5 {[%emt 0:00:33]} 23. Qxc5 {[%emt 0:00:24]} Bxc5 {[%emt 0:00:30]} 24. Bxh6 {[%emt 0:00:12]} Rfe8 {[%emt 0:00:27]} 25. g3 {[%emt 0:08:44]} Re2 {[%emt 0:05:45]} 26. b3 {[%emt 0:04:05]} Rb2 {[%emt 0:00:15]} 27. Rd3 {[%emt 0:00:12]} Re8 {[%emt 0:00:17]} 28. Bg5 {[%emt 0:02:15]} Re6 {[%emt 0:08:34]} 29. Bc1 {[%emt 0:06:57]} Rc2 {[%emt 0:02:34]} 30. Bd2 {[%emt 0:03:08]} Re2 {[%emt 0:01:18]} 31. Bc3 {[%emt 0:00:17]} f5 {[%emt 0:00:16]} 32. Bd4 {[%emt 0:00:38]} Kf7 {[%emt 0:02:09]} 33. Bxc5 {[%emt 0:00:32]} Rxc5 {[%emt 0:00:21]} 34. Rd7+ {[%emt 0:02:48]} Re7 {[%emt 0:00:42]} 35. Rfd1 {[%emt 0:00:27]} b5 {[%emt 0:02:58]} 36. R1d5 {[%emt 0:00:49]} Rc1+ {[%emt 0:00:38]} 37. Kg2 {[%emt 0:00:04]} Rxd7 {[%emt 0:01:33]} 38. Rxd7+ {[%emt 0:00:08]} Ke6 {[%emt 0:00:04]} 39. Ra7 {[%emt 0:02:17]} bxa4 {[%emt 0:00:00]} 40. bxa4 {[%emt 0:00:00]} Rc5 {[%emt 0:00:08]} 41. f4 {[%emt 0:00:53]} Kd5 {[%emt 0:02:06]} 42. Ra6 {[%emt 0:01:26]} Kc4 {[%emt 0:00:04]} 43. Rb6 {[%emt 0:00:50]} Kc3 {[%emt 0:01:24]} 44. h4 {[%emt 0:03:18]} Rc4 {[%emt 0:00:20]} 45. Rxg6 {[%emt 0:00:08]} Rxa4 {[%emt 0:00:28]} 46. h5 {[%emt 0:00:45]} Ra2+ {[%emt 0:00:29]} 47. Kh3 {[%emt 0:00:06]} Ra1 {[%emt 0:00:09]} 48. Kh4 {[%emt 0:00:11]} a4 {[%emt 0:00:20]} 49. Kg5 {[%emt 0:00:30]} Rh1 {[%emt 0:00:51]} 50. Ra6 {[%emt 0:00:33]} Kb3 {[%emt 0:00:07]} 51. Kxf5 {[%emt 0:02:08]} Rxh5+ {[%emt 0:00:11]} 52. Kg6 {[%emt 0:00:10]} Rh1 {[%emt 0:01:37]} 53. g4 {[%emt 0:00:45]} a3 {[%emt 0:00:04]} 54. f5 {[%emt 0:00:06]} a2 {[%emt 0:00:05]} 55. f6 {[%emt 0:00:12]} Rh4 {[%emt 0:01:24]} 56. Rxa2 {[%emt 0:01:10]} Rxg4+ {[%emt 0:00:21]} 57. Kf5 {[%emt 0:00:03]} Rg1 {[%emt 0:00:28]} 58. Rf2 {[%emt 0:00:08]} 1-0